bitfinex/quotes_ETHUSD_20260131
["timestamp","ask_amount","ask_price","bid_price","bid_amount"]
[1769897352310,12.91062818,2419.2,2418.1,0.01267828]
[1769897352640,12.91162818,2419.6,2418.6,0.01267828]
[1769897352938,1.0342461,2419.6,2418.6,0.01267828]
[1769897353143,1.0342461,2419.6,2418.5,0.01267828]
[1769897353442,13.94487428,2419.6,2418.3,0.24624858]
[1769897353653,13.42733056,2419.5,2418.3,0.01267828]
[1769897353949,13.42733056,2419.5,2418.4,0.01267828]
[1769897354146,1.03331404,2419.4,2418.5,1.03369857]
[1769897354346,1.03331404,2419.4,2418.5,1.96659649]
[1769897354654,13.94394222,2419.4,2418.5,1.96659649]
[1769897355820,13.94394222,2419.4,2418.5,1.03369857]
[1769897356218,13.94394222,2419.4,2418.3,1.03378406]
[1769897356926,13.94394222,2419.4,2418.3,1.04646234]
[1769897357849,1.55001383,2419.5,2418.5,0.01267828]
[1769897358146,1.55001383,2419.5,2418.4,0.01267828]
[1769897358348,13.88824087,2419.4,2418.5,1.03369857]
[1769897359019,13.88824087,2419.4,2418.0,1.03388555]
[1769897359020,12.91062818,2419.2,2418.0,1.03388555]
[1769897359220,12.91062818,2419.2,2418.0,1.03391032]
[1769897359434,12.91062818,2419.0,2418.1,1.03386614]
[1769897360150,12.91062818,2419.0,2418.1,4.13547372]
[1769897360345,12.91062818,2419.0,2417.8,4.13596812]
[1769897360346,12.91062818,2419.0,2417.9,1.04663336]
[1769897360549,12.91062818,2419.4,2418.3,0.01267828]
[1769897361057,12.91062818,2419.4,2418.5,0.0011]
[1769897361363,13.9439431,2419.4,2418.5,0.0011]
[1769897361662,1.90126332,2419.6,2418.5,0.0011]
[1769897362230,1.90126332,2419.6,2418.6,1.03365583]
[1769897362430,0.60340745,2419.5,2418.6,1.5531294]
[1769897364459,1.63668682,2419.5,2418.6,1.5531294]
[1769897366166,1.63668682,2419.5,2418.5,0.0011]
[1769897366167,12.91062818,2419.4,2418.5,0.0011]
[1769897366342,13.94407036,2419.1,2418.5,0.0011]
[1769897366547,0.89090762,2419.0,2418.5,0.0011]
[1769897368182,1.10242301,2419.4,2418.5,0.0011]
[1769897368183,1.03334625,2419.4,2418.5,0.0011]
[1769897369366,13.94397443,2419.4,2418.5,0.0011]
[1769897370366,15.04639744,2419.4,2418.5,0.0011]
[1769897370748,1.10242301,2419.3,2418.5,0.0011]
[1769897370955,12.91062818,2419.2,2418.5,0.0011]
[1769897372175,14.88005119,2419.2,2418.5,0.0011]
[1769897372383,13.77762818,2419.2,2418.5,0.0011]
[1769897373081,1.03344218,2419.1,2418.5,0.0011]
[1769897373480,0.001,2419.0,2418.5,0.0011]
[1769897374886,0.867,2419.2,2418.5,0.0011]
[1769897375454,14.81102837,2419.2,2418.5,0.0011]
[1769897375658,13.77762818,2419.2,2418.5,0.0011]
[1769897375983,0.867,2419.2,2418.5,0.0011]
[1769897376168,1.47677784,2419.6,2418.5,0.01377828]
[1769897376169,1.03425168,2419.6,2418.5,0.01377828]
[1769897376372,1.03425168,2419.6,2418.5,0.53086894]
[1769897376773,12.91062818,2419.4,2418.5,0.51819066]
[1769897376975,12.91062818,2419.4,2418.5,0.0011]
[1769897377793,15.04637835,2419.4,2418.5,0.0011]
[1769897379397,13.31796971,2419.2,2418.5,0.0011]
[1769897379766,14.35141189,2419.1,2418.5,0.0011]
[1769897380197,13.31796971,2419.1,2418.5,0.0011]
[1769897380875,14.42039272,2419.1,2418.5,0.0011]
[1769897381080,13.31796971,2418.9,2418.5,0.0011]
[1769897382002,0.8928786,2418.8,2418.5,0.0011]
[1769897382195,0.8928786,2418.7,2418.5,0.0011]
[1769897382366,0.8928786,2418.6,2418.5,0.0011]
[1769897382568,0.8928786,2418.8,2418.5,0.0011]
[1769897384894,14.58208141,2418.8,2418.5,0.0011]
[1769897385209,0.8928786,2418.7,2418.5,0.0011]
[1769897386403,12.65562433,2418.6,2418.3,0.0011]
[1769897386565,0.8928786,2418.5,2418.3,0.0011]
[1769897386788,4.13501667,2419.0,2418.3,0.0011]
[1769897386789,0.001,2419.0,2418.3,0.0011]
[1769897386985,4.14461024,2420.2,2418.3,0.0011]
[1769897386986,15.03332084,2419.4,2418.3,0.0011]
[1769897387222,17.30033575,2419.4,2418.3,0.0011]
[1769897392720,17.0049354,2419.3,2418.3,0.0011]
[1769897397510,17.0049354,2419.3,2418.5,0.0011]
[1769897397806,14.001,2419.2,2418.5,0.0011]
[1769897398508,3.0049354,2419.1,2418.5,0.0011]
[1769897401808,0.001,2419.6,2418.5,0.0011]
[1769897402112,0.001,2419.6,2418.6,0.2335703]
[1769897402308,0.001,2419.6,2418.6,0.77388662]
[1769897403824,0.001,2419.6,2418.6,1.64088662]
[1769897404127,14.001,2419.6,2418.7,1.03361309]
[1769897407031,14.001,2419.6,2418.6,1.03362688]
[1769897407032,15.03424094,2419.6,2418.6,1.03362688]
[1769897408107,0.89163009,2419.5,2418.6,14.31201327]
[1769897408436,0.001,2419.6,2418.7,0.2335703]
[1769897408637,0.001,2419.6,2418.7,13.51195669]
[1769897408844,13.90178236,2420.3,2419.0,13.27838639]
[1769897409037,0.89132747,2420.2,2419.1,0.2335703]
[1769897409252,0.89132747,2420.1,2419.1,14.88777722]
[1769897409442,12.86885216,2419.9,2418.8,1.03357036]
[1769897409642,12.86885216,2419.7,2418.8,1.03357036]
[1769897409943,0.001,2419.4,2418.8,1.03357036]
[1769897411449,0.001,2419.4,2418.6,4.13428146]
[1769897411810,12.86985216,2419.4,2418.5,0.0011]
[1769897412011,12.86885216,2419.3,2418.5,1.03477639]
[1769897413030,13.73485216,2419.2,2418.5,1.03477639]
[1769897413941,13.73485216,2419.2,2418.5,0.0011]
[1769897415250,14.76828052,2419.2,2418.5,0.0011]
[1769897415616,14.76828052,2419.2,2418.3,0.0011]
[1769897416923,3.38663292,2419.2,2418.3,0.0011]
[1769897417131,12.86885216,2419.1,2418.3,0.0011]
[1769897418621,12.86885216,2418.9,2418.3,0.0011]
[1769897419637,12.86885216,2418.9,2418.1,0.0011]
[1769897419844,14.35605672,2418.9,2417.6,1.03517821]
[1769897420153,14.35605672,2418.9,2417.3,0.0011]
[1769897420154,12.86885216,2418.4,2417.3,0.0011]
[1769897420458,14.35605672,2418.2,2417.3,0.0011]
[1769897420753,12.86885216,2417.8,2417.3,0.0011]
[1769897421053,12.86885216,2417.8,2416.9,0.0011]
[1769897421054,12.86885216,2417.6,2416.9,0.0011]
[1769897421253,13.76065033,2417.5,2416.9,0.0011]
[1769897421428,12.86885216,2417.5,2416.9,0.0011]
[1769897421623,0.88993116,2417.4,2416.9,0.0011]
[1769897421829,12.86885216,2417.4,2416.9,0.0011]
[1769897422046,12.86885216,2417.7,2417.3,0.0011]
[1769897422327,2.22876761,2418.1,2417.3,0.0011]
[1769897422328,1.48720456,2418.1,2417.3,0.0011]
[1769897422526,0.867,2418.1,2417.3,0.0011]
[1769897422762,13.73585216,2418.1,2417.3,0.0011]
[1769897423438,14.76972429,2418.1,2417.3,0.0011]
[1769897423638,14.76972179,2418.1,2417.3,0.0011]
[1769897424060,14.76972179,2418.1,2416.9,0.0011]
[1769897424061,12.86885216,2417.9,2416.9,0.0011]
[1769897424233,1.90086963,2418.1,2416.9,0.0011]
[1769897424234,12.86885216,2417.7,2416.9,0.0011]
[1769897424435,0.867,2417.6,2416.9,1.03546943]
[1769897424750,12.86885216,2417.4,2416.9,0.0011]
[1769897427240,13.90305681,2417.4,2416.9,0.0011]
[1769897427441,1.03408338,2417.6,2416.9,0.0011]
[1769897427764,0.867,2417.4,2416.9,0.0011]
[1769897427952,17.00456718,2418.0,2416.9,0.0011]
[1769897428156,0.867,2417.9,2416.9,0.01377828]
[1769897428362,0.867,2417.9,2416.9,0.0011]
[1769897428866,13.73585216,2417.9,2416.9,0.0011]
[1769897429165,1.03399784,2417.8,2416.9,1.03548288]
[1769897429359,13.90285,2417.8,2416.9,1.03548288]
[1769897429571,13.90285,2417.8,2416.9,0.0011]
[1769897431638,1.03398248,2417.9,2416.9,0.0011]
[1769897431959,0.867,2417.8,2416.9,13.27948639]
[1769897432339,0.867,2417.8,2417.1,13.29106467]
[1769897432544,0.867,2417.8,2417.2,1.33037429]
[1769897433255,0.867,2417.8,2416.9,0.0011]
[1769897434047,1.90099788,2417.8,2416.9,1.03548288]
[1769897434247,14.76985004,2417.8,2417.1,0.0011]
[1769897434472,14.77085004,2417.8,2417.1,0.0011]
[1769897435085,14.77085004,2417.8,2416.6,13.27838639]
[1769897435086,14.77085004,2417.8,2416.6,1.03447566]
[1769897435244,14.77085004,2417.8,2416.6,1.03451058]
[1769897435750,14.77085004,2417.8,2416.3,0.0011]
[1769897435950,12.86885216,2417.4,2416.3,0.0011]
[1769897436167,12.86885216,2416.9,2415.9,0.0011]
[1769897436469,13.73585216,2416.8,2415.9,0.0011]
[1769897436784,0.867,2416.8,2416.2,0.01267828]
[1769897436971,0.001,2417.8,2416.8,0.01267828]
[1769897437277,4.13474005,2418.6,2417.6,0.01267828]
[1769897437457,0.867,2418.5,2417.7,0.01267828]
[1769897438046,0.867,2418.5,2417.9,0.01267828]
[1769897438369,16.98636771,2419.1,2417.9,0.01267828]
[1769897438370,1.90046984,2419.1,2418.2,0.01267828]
[1769897438751,15.35644056,2419.1,2417.7,1.03404061]
[1769897438942,14.48944056,2419.1,2417.7,1.04671889]
[1769897439150,14.60561805,2419.0,2417.8,0.01267828]
[1769897439348,13.74344327,2418.9,2417.8,0.52083723]
[1769897440174,12.85254946,2418.9,2417.9,1.03395508]
[1769897440370,1.90050863,2419.0,2418.1,0.01267828]
[1769897440681,14.75305809,2419.0,2417.9,1.03395508]
[1769897440850,14.75305809,2419.0,2417.8,1.03396615]
[1769897441052,14.75305809,2419.0,2417.8,0.519547]
[1769897441351,14.75305809,2419.0,2417.8,1.03399211]
[1769897441575,14.75305809,2419.0,2417.7,1.03401728]
[1769897442287,14.75305809,2419.0,2417.6,4.13632566]
[1769897442448,14.75305809,2419.0,2417.6,1.03408338]
[1769897442645,13.08967559,2418.9,2417.6,1.03408338]
[1769897442849,13.08967559,2418.9,2417.7,0.51705618]
[1769897443258,0.867,2418.8,2417.8,0.01267828]
[1769897443659,0.867,2418.8,2417.9,0.01267828]
[1769897444292,0.867,2418.8,2417.8,1.03397226]
[1769897444293,14.12328868,2418.7,2417.8,1.03397226]
[1769897444455,13.08967559,2418.6,2417.8,1.60268589]
[1769897444656,0.867,2418.8,2417.8,1.61536417]
[1769897445184,0.867,2418.8,2417.9,0.01267828]
[1769897445382,0.867,2418.8,2417.9,0.59036114]
[1769897445560,1.90057187,2418.8,2417.9,0.59036114]
[1769897446359,0.001,2418.7,2418.0,1.03391232]
[1769897450299,0.001,2418.7,2417.8,1.6026806]
[1769897450611,0.001,2418.7,2417.5,4.13643465]
[1769897450808,0.001,2418.7,2417.6,0.51832391]
[1769897451014,0.001,2418.7,2417.6,0.53100219]
[1769897451015,13.09067559,2418.7,2417.6,0.53100219]
[1769897451313,13.09067559,2418.7,2417.6,0.51832391]
[1769897452109,13.09067559,2418.7,2416.8,0.0011]
[1769897452403,14.20012917,2418.5,2417.0,1.03430901]
[1769897452578,13.08967559,2418.3,2416.8,1.03552568]
[1769897452779,14.20012917,2418.3,2416.9,0.51859067]
[1769897453291,13.08967559,2418.1,2416.9,0.51859067]
[1769897454707,13.08967559,2417.9,2417.0,1.03434009]
[1769897457191,1.03399784,2417.8,2417.0,1.03434009]
[1769897457391,1.03399784,2417.8,2417.0,1.60474915]
[1769897458276,14.12367343,2417.8,2417.0,1.60474915]
[1769897458482,14.12367343,2417.8,2417.1,0.0011]
[1769897461313,0.867,2417.7,2417.1,0.0011]
[1769897461918,15.06712917,2417.7,2416.5,0.0011]
[1769897462106,14.20012917,2417.6,2416.5,0.0011]
[1769897462612,13.08967559,2417.4,2416.5,0.0011]
[1769897462906,14.20012917,2417.4,2416.5,0.0011]
[1769897463109,13.08967559,2417.4,2416.5,0.0011]
[1769897463604,13.08967559,2417.2,2416.5,0.0011]
[1769897463802,0.867,2417.1,2416.5,0.0011]
[1769897465917,1.90133142,2417.1,2416.5,0.0011]
[1769897466096,14.99100701,2417.1,2416.5,0.0011]
[1769897468023,1.11045358,2417.2,2416.5,0.0011]
[1769897468328,1.90116974,2417.4,2416.5,13.57768395]
[1769897468628,1.03416974,2417.4,2416.6,1.35903622]
[1769897468836,16.85237257,2417.7,2416.6,1.35903622]
[1769897470214,16.85237257,2417.7,2416.7,1.03446849]
[1769897470519,16.85237257,2417.7,2416.7,1.03556849]
[1769897470925,0.001,2417.5,2416.7,1.03556849]
[1769897471701,0.001,2417.5,2416.7,1.04824677]
[1769897472222,0.001,2417.5,2416.7,1.03556849]
[1769897472418,0.001,2417.5,2416.7,1.04824677]
[1769897472898,12.71707027,2417.5,2416.7,0.0011]
[1769897473453,12.71607027,2417.3,2416.7,0.0011]
[1769897474144,0.001,2417.5,2416.7,0.0011]
[1769897475621,12.71707027,2417.5,2416.7,0.0011]
[1769897476120,0.001,2417.5,2416.7,0.0011]
[1769897476520,12.71707027,2417.5,2416.7,0.0011]
[1769897477021,12.71707027,2417.5,2416.5,0.0011]
[1769897477231,13.82752385,2417.5,2416.5,0.0011]
[1769897477835,12.71707027,2417.5,2416.5,0.0011]
[1769897478219,13.82752385,2417.5,2416.5,0.0011]
[1769897478424,13.75028199,2417.3,2416.5,0.0011]
[1769897478747,12.71607027,2417.2,2416.5,0.0011]
[1769897479449,12.71607027,2417.0,2415.9,0.0011]
[1769897479622,12.71607027,2417.0,2415.9,1.03590797]
[1769897479623,12.71607027,2416.8,2415.9,1.03590797]
[1769897479959,0.89054981,2416.7,2416.1,14.61130444]
[1769897480124,0.867,2416.9,2416.1,14.61130444]
[1769897480319,0.867,2416.9,2416.2,0.01267828]
[1769897480522,0.867,2416.9,2416.3,1.03463973]
[1769897480723,0.867,2416.9,2416.4,14.09390479]
[1769897481123,0.867,2416.9,2416.4,0.51732084]
[1769897481326,0.867,2416.9,2416.3,1.03463973]
[1769897481522,13.60783803,2416.8,2415.9,1.03587749]
[1769897481726,13.60783803,2416.7,2416.0,1.03476509]
[1769897481927,0.89176776,2416.6,2416.1,1.0347208]
[1769897482722,0.89176776,2416.6,2415.9,0.0011]
[1769897483047,6.11504739,2416.9,2415.9,0.0011]
[1769897483048,0.867,2416.9,2416.6,0.0011]
[1769897483256,0.89217531,2416.8,2415.9,14.10929304]
[1769897483548,0.89217531,2416.7,2416.0,0.01267828]
[1769897483735,0.89217531,2416.6,2416.4,0.0011]
[1769897483935,3.01284586,2416.9,2416.4,0.0011]
[1769897484136,1.60717776,2416.8,2416.4,0.0011]
[1769897484431,13.60821427,2416.7,2415.9,0.0011]
[1769897484628,0.892144,2416.6,2415.9,0.0011]
[1769897485161,12.71607027,2416.4,2415.9,0.0011]
[1769897485328,0.892144,2416.3,2415.9,0.0011]
[1769897485530,0.892144,2416.2,2415.9,0.0011]
[1769897485748,1.11045358,2416.5,2415.9,0.0011]
[1769897485925,1.2552157,2416.4,2415.9,0.0011]
[1769897486124,0.89194523,2416.3,2415.9,0.0011]
[1769897486347,1.03448954,2416.7,2415.9,0.0011]
[1769897486648,0.89180143,2416.6,2415.9,0.0011]
[1769897486946,0.89180143,2416.5,2416.0,1.03476821]
[1769897487152,1.03448954,2416.7,2416.0,1.03476821]
[1769897487450,16.46796348,2416.7,2416.0,1.03476821]
[1769897487646,0.89188538,2416.6,2416.0,1.03476821]
[1769897488837,0.89188538,2416.6,2415.9,0.0011]
[1769897491366,14.64246921,2416.6,2415.9,0.0011]
[1769897491529,14.71840923,2416.5,2415.9,0.0011]
[1769897491730,2.53813574,2416.4,2415.9,0.0011]
[1769897491928,0.89188538,2416.3,2415.9,0.0011]
[1769897492752,0.867,2416.4,2415.9,0.0011]
[1769897493259,1.9264395,2416.3,2415.9,0.0011]
[1769897493565,0.89182241,2416.2,2415.9,0.0011]
[1769897493730,13.75072061,2416.3,2415.9,0.0011]
[1769897493927,0.89182352,2416.2,2415.9,0.0011]
[1769897494166,12.71607027,2416.0,2414.4,0.003]
[1769897494465,0.21545154,2414.3,2414.1,0.0822659]
[1769897494682,1.48255942,2413.1,2412.7,13.57658395]
[1769897494832,1.48255942,2413.1,2412.8,1.78481009]
[1769897494833,0.88163517,2413.1,2412.8,1.78481009]
[1769897495033,1.98168507,2413.6,2412.9,0.01267828]
[1769897495267,1.98168507,2413.6,2413.2,0.01267828]
[1769897495268,0.867,2413.6,2413.2,0.01267828]
[1769897495469,1.09253673,2413.8,2413.1,1.03598377]
[1769897495767,2.12825562,2413.8,2413.0,1.04869832]
[1769897495948,2.12825562,2413.8,2412.8,4.15720023]
[1769897495949,1.09253673,2413.8,2413.1,1.03600833]
[1769897496151,1.09253673,2413.8,2413.1,1.03598713]
[1769897496333,1.09253673,2413.8,2413.3,0.01267828]
[1769897496872,1.09253673,2413.8,2413.2,1.04863956]
[1769897497237,1.09253673,2413.8,2413.2,0.01267828]
[1769897497547,2.12825677,2413.8,2413.2,0.52179446]
[1769897497750,0.29801625,2413.7,2413.0,1.04872019]
[1769897497948,0.29801625,2413.7,2413.0,0.01267828]
[1769897498258,0.29801625,2413.7,2413.0,1.04872592]
[1769897498558,0.29801625,2413.7,2412.9,1.03606708]
[1769897498761,0.29801625,2413.7,2413.0,1.03605296]
[1769897499133,0.21545154,2414.3,2413.5,0.01267828]
[1769897499337,0.21545154,2414.3,2413.7,0.01267828]
[1769897499536,0.21545154,2414.3,2413.6,1.04847542]
[1769897499757,0.21545154,2414.3,2413.7,0.01267828]
[1769897499960,0.21545154,2414.3,2413.7,0.53439642]
[1769897500132,1.03545887,2414.4,2413.7,0.53439642]
[1769897500333,1.03545887,2414.4,2413.1,13.96322617]
[1769897500555,13.63802223,2414.4,2413.4,1.03588164]
[1769897500757,13.63802223,2414.4,2413.5,1.03581982]
[1769897501145,1.03545887,2414.4,2413.5,1.0484981]
[1769897501346,1.03545887,2414.4,2413.6,0.52047053]
[1769897501550,14.89198392,2414.6,2413.6,1.55626084]
[1769897502344,14.89198392,2414.6,2413.6,0.52047053]
[1769897502569,14.89198392,2414.6,2413.6,1.5562672]
[1769897503574,14.89198392,2414.6,2413.6,0.52047053]
[1769897503774,14.89198392,2414.6,2413.6,1.03578673]
[1769897504661,14.89198392,2414.6,2413.4,1.03585971]
[1769897504853,14.89198392,2414.6,2413.3,1.04857105]
[1769897505174,14.89198392,2414.6,2413.3,1.03592454]
[1769897505373,13.85661575,2414.4,2413.2,1.03593484]
[1769897505667,5.0094727,2414.7,2413.4,1.03587781]
[1769897505668,1.03553972,2414.2,2413.4,1.03587781]
[1769897506254,1.03553972,2414.2,2413.3,1.55515565]
[1769897506455,1.03553972,2414.2,2413.1,1.03598905]
[1769897506456,0.868,2414.1,2413.1,1.03598905]
[1769897506657,14.72461575,2414.1,2413.1,1.03598905]
[1769897507063,14.72461575,2414.1,2413.1,1.03599392]
[1769897507267,14.72461575,2414.1,2412.9,1.55666787]
[1769897507670,14.89224126,2414.0,2412.9,1.55666787]
[1769897507853,13.85761575,2413.9,2412.9,1.55669159]
[1769897508055,13.85761575,2413.9,2412.9,1.0360946]
[1769897508251,13.85761575,2413.9,2412.8,1.03611899]
[1769897508458,13.85761575,2413.9,2412.7,1.0361718]
[1769897508750,13.85761575,2413.9,2412.6,1.03618502]
[1769897509073,13.85661575,2413.8,2412.6,1.03619387]
[1769897509278,13.85661575,2413.8,2412.5,1.03625086]
[1769897509448,13.85661575,2413.8,2412.5,1.03626784]
[1769897509650,13.85661575,2413.6,2412.4,0.003]
[1769897509851,13.85661575,2413.4,2412.4,0.003]
[1769897510853,0.868,2413.6,2412.5,13.29640322]
[1769897511052,0.868,2413.6,2412.5,13.28372494]
[1769897511353,0.868,2413.6,2412.4,0.01567828]
[1769897511676,0.001,2413.9,2413.2,1.03596883]
[1769897511890,0.001,2413.9,2413.3,1.84635691]
[1769897512696,0.001,2413.9,2413.1,1.03597834]
[1769897513155,13.70761575,2414.2,2413.1,1.03597834]
[1769897513554,13.70761575,2414.2,2413.0,4.14408979]
[1769897513555,13.85661575,2413.1,2412.4,0.003]
[1769897513789,1.03603544,2413.1,2412.4,0.003]
[1769897513960,0.868,2413.0,2412.4,0.003]
[1769897514280,0.868,2413.0,2412.4,1.34699643]
[1769897514654,0.868,2413.0,2412.4,1.33431815]
[1769897514977,0.868,2413.0,2412.4,1.34699643]
[1769897515187,0.868,2413.0,2412.4,0.01567828]
[1769897515358,0.868,2413.0,2412.4,0.003]
[1769897515751,1.03609764,2412.9,2412.4,0.003]
[1769897516361,1.03609764,2412.9,2412.2,0.0011]
[1769897516985,14.89271339,2412.9,2412.2,0.0011]
[1769897517285,0.88318413,2412.8,2411.9,0.0011]
[1769897517483,1.03609764,2412.9,2411.9,0.0011]
[1769897517484,0.868,2412.7,2411.9,1.03761809]
[1769897517689,0.868,2412.7,2412.0,0.01267828]
[1769897518359,1.90419326,2412.7,2411.9,0.0011]
[1769897518567,2.92354535,2412.7,2411.9,0.0011]
[1769897518754,1.90419326,2412.7,2411.9,0.0011]
[1769897519482,1.90419326,2412.7,2412.2,0.0011]
[1769897519992,1.90419326,2412.7,2412.0,0.0011]
[1769897520176,0.88417176,2412.6,2411.6,0.0011]
[1769897520484,0.88417176,2412.5,2411.6,0.0011]
[1769897520706,1.10238745,2413.0,2411.9,13.29640322]
[1769897520869,1.03609764,2412.9,2412.0,0.01267828]
[1769897521207,1.03609764,2412.9,2412.0,1.33217598]
[1769897521507,1.97138745,2413.2,2412.1,13.29640322]
[1769897521508,0.869,2413.2,2412.1,13.29640322]
[1769897521796,0.869,2413.2,2412.3,13.29640322]
[1769897521954,0.869,2413.2,2412.4,1.03631238]
[1769897522160,0.869,2413.2,2412.5,1.84779651]
[1769897523595,3.69037323,2413.9,2413.0,0.01267828]
[1769897523791,3.69037323,2413.9,2412.9,0.01267828]
[1769897523792,0.88843362,2413.8,2412.9,0.01267828]
[1769897523996,0.88843362,2413.7,2413.0,1.0360547]
[1769897524292,0.88856331,2413.6,2413.0,1.04873298]
[1769897524494,3.69037473,2413.9,2413.0,1.04873298]
[1769897524788,0.89002862,2413.8,2413.0,1.04873298]
[1769897524989,0.89002862,2413.7,2413.1,1.84767417]
[1769897525157,1.5523,2413.9,2413.1,1.84767417]
[1769897525359,0.88999607,2413.8,2413.1,1.86035245]
[1769897525567,1.5523,2413.9,2413.1,1.86035245]
[1769897525785,0.6833,2413.9,2413.3,13.29640322]
[1769897525961,1.10238745,2414.5,2413.7,1.03575423]
[1769897526166,1.48624677,2414.6,2413.8,0.01267828]
[1769897526167,0.869,2414.6,2413.8,0.01267828]
[1769897526390,0.869,2414.6,2413.8,0.53435888]
[1769897526904,0.869,2414.6,2413.9,0.01267828]
[1769897527182,0.86327,2414.6,2413.9,0.01267828]
[1769897527589,0.86327,2414.6,2413.9,13.59213609]
[1769897527784,0.86327,2414.6,2414.0,1.42532778]
[1769897528085,0.86327,2414.6,2414.1,1.03558261]
[1769897528987,0.86327,2414.6,2414.0,1.4126495]
[1769897529159,1.89863985,2414.6,2413.9,1.03566225]
[1769897529356,1.89863985,2414.6,2413.5,13.57945781]
[1769897529357,3.03084259,2414.6,2413.5,1.03581477]
[1769897529557,0.71722603,2414.5,2413.6,0.51793082]
[1769897529881,0.71722603,2414.5,2413.5,1.03581477]
[1769897529882,13.25386676,2414.3,2412.6,13.57945781]
[1769897530075,13.25386676,2414.3,2413.0,1.0360547]
[1769897530076,1.03553972,2414.2,2413.0,1.0360547]
[1769897530468,1.10238745,2414.4,2413.1,13.59213609]
[1769897530469,2.13786008,2414.4,2413.1,13.59213609]
[1769897530682,0.869,2414.2,2413.2,1.46408691]
[1769897531274,0.869,2414.2,2413.4,0.0011]
[1769897532396,1.03558261,2414.1,2413.4,0.0011]
[1769897534168,14.35625421,2414.0,2413.4,0.0011]
[1769897534494,14.35625421,2414.0,2412.6,10.22]
[1769897534495,1.10238745,2413.8,2412.6,10.22]
[1769897534700,13.25386676,2413.7,2412.6,1.03621519]
[1769897535000,13.97109279,2413.7,2412.6,1.03621519]
[1769897535200,13.97109279,2413.7,2412.5,1.03624751]
[1769897535399,15.07348024,2413.7,2412.5,1.03624751]
[1769897536414,1.10238745,2413.6,2412.5,1.03624751]
[1769897536703,1.10238745,2413.6,2412.5,1.55438967]
[1769897536704,2.6819291,2413.5,2412.5,1.55438967]
[1769897537072,3.78431655,2413.5,2412.5,1.55438967]
[1769897538026,1.10238745,2413.1,2412.2,0.0011]
[1769897538304,1.99206481,2413.0,2412.2,0.0011]
[1769897538474,1.03614058,2412.8,2412.2,0.0011]
[1769897538671,0.869,2412.7,2412.2,0.0011]
[1769897540741,1.10238745,2413.4,2412.3,13.57945781]
[1769897540896,0.88934714,2413.3,2412.3,13.57945781]
[1769897541091,0.88930902,2413.2,2412.4,1.35805578]
[1769897541336,18.49963088,2413.5,2412.2,0.0011]
[1769897541628,0.88931555,2413.4,2412.2,13.59323609]
[1769897541836,1.03582633,2413.6,2412.2,13.58055781]
[1769897541996,0.88925274,2413.5,2412.2,13.58055781]
[1769897542333,0.88925274,2413.4,2412.3,1.46296774]
[1769897542917,0.88925274,2413.4,2412.4,1.03631238]
[1769897543326,1.03582524,2413.6,2412.4,1.03631238]
[1769897543506,0.88936087,2413.5,2412.4,1.03631238]
[1769897543821,1.03582524,2413.6,2412.5,0.0011]
[1769897544125,0.88933884,2413.5,2412.5,0.66693079]
[1769897544323,1.66395173,2413.6,2412.5,0.66693079]
[1769897544622,0.88934523,2413.5,2412.5,0.66693079]
[1769897544822,1.66395173,2413.6,2412.5,0.66693079]
[1769897545008,1.92519326,2413.5,2412.6,1.03622647]
[1769897545320,0.6696372,2413.5,2412.7,0.58480632]
[1769897545491,1.70548183,2413.5,2412.7,0.58480632]
[1769897546192,0.6696372,2413.5,2412.7,0.58480632]
[1769897546395,1.70548613,2413.5,2412.7,0.58480632]
[1769897546615,1.10238745,2413.8,2412.7,0.58480632]
[1769897546818,0.88950261,2413.7,2412.7,14.16426413]
[1769897547022,1.90469104,2413.9,2412.8,1.03614058]
[1769897547224,0.88957257,2413.8,2412.8,1.03614058]
[1769897547415,0.88957257,2413.7,2412.8,1.03614058]
[1769897547614,1.90469104,2413.9,2412.9,1.9344967]
[1769897547930,0.88991882,2413.8,2412.9,1.9344967]
[1769897548134,0.88991882,2413.7,2412.9,1.9344967]
[1769897548315,0.88991882,2413.6,2412.9,1.9344967]
[1769897548516,3.00707849,2413.9,2412.9,1.9344967]
[1769897548837,1.60511896,2413.8,2412.9,1.9344967]
[1769897549034,0.89015847,2413.7,2412.9,1.9344967]
[1769897549232,0.89015847,2413.6,2413.0,1.0360547]
[1769897549404,0.71496049,2413.8,2413.0,1.0360547]
[1769897549604,0.89055069,2413.7,2413.0,2.16198744]
[1769897549828,0.71496049,2413.8,2413.0,2.16198744]
[1769897549829,0.89055069,2413.6,2413.0,2.16198744]
[1769897550146,0.869,2413.9,2413.0,15.74144525]
[1769897550355,0.89057577,2413.8,2413.0,15.74144525]
[1769897550508,0.869,2413.9,2413.0,15.74144525]
[1769897550836,0.869,2413.9,2413.1,15.76274171]
[1769897550837,0.89057241,2413.8,2413.1,15.76274171]
[1769897551143,1.10238745,2414.4,2413.1,15.76274171]
[1769897551302,14.35625421,2414.7,2413.3,0.01267828]
[1769897551505,0.89067762,2414.6,2413.4,13.57945781]
[1769897551810,0.89067762,2414.5,2413.4,13.57945781]
[1769897552117,2.13770292,2414.8,2413.4,13.57945781]
[1769897552303,0.89043595,2414.7,2413.4,13.57945781]
[1769897552623,16.26048475,2415.0,2413.6,13.57945781]
[1769897552831,0.89036619,2414.9,2413.6,13.57945781]
[1769897553014,0.89036619,2414.8,2413.6,13.57945781]
[1769897553214,15.1580973,2415.0,2413.7,14.61521204]
[1769897553404,0.88998129,2414.9,2413.7,14.61521204]
[1769897553604,0.88998129,2414.8,2413.8,1.87709073]
[1769897553900,15.1580973,2415.0,2413.8,1.87709073]
[1769897554129,0.88998447,2414.9,2413.8,1.87709073]
[1769897554466,1.48624677,2415.3,2413.8,1.87709073]
[1769897554467,1.10238745,2415.3,2414.0,13.57945781]
[1769897554750,2.35431683,2415.3,2414.2,13.57945781]
[1769897554902,2.52125941,2415.5,2414.4,13.57945781]
[1769897554903,0.8895633,2415.2,2414.4,13.57945781]
[1769897555102,2.35524677,2415.7,2414.4,13.57945781]
[1769897555103,0.869,2415.7,2414.6,13.57945781]
[1769897555305,0.88874543,2415.6,2414.6,13.57370493]
[1769897555537,0.88874543,2415.5,2414.6,13.57370493]
[1769897555722,0.30062879,2415.6,2414.7,1.4609116]
[1769897555906,0.88872639,2415.5,2414.7,1.4609116]
[1769897556105,0.30062879,2415.6,2414.7,1.4609116]
[1769897556832,0.869,2415.7,2414.7,1.4609116]
[1769897557004,13.25386676,2416.1,2414.7,13.57945781]
[1769897557202,0.88802399,2416.0,2414.8,1.03528242]
[1769897557417,14.28859255,2416.1,2414.8,1.03528242]
[1769897557600,0.8872671,2416.0,2414.8,1.03528242]